bitfinex/quotes_ETHUSD_20230118
["timestamp","ask_amount","ask_price","bid_price","bid_amount"]
[1674006879230,0.0051487,1576.8,1576.7,19.37430666]
[1674006879822,0.0051487,1576.8,1576.7,19.37121821]
[1674006881383,0.0051487,1576.8,1576.7,20.80821821]
[1674006883332,0.0051487,1576.8,1576.7,20.80523395]
[1674006883538,0.0051487,1576.8,1576.7,19.36823395]
[1674006884760,0.0051487,1576.8,1576.7,25.71059395]
[1674006885378,3.2051487,1576.8,1576.7,25.71059395]
[1674006886321,0.0051487,1576.8,1576.7,25.71059395]
[1674006887226,0.0051487,1576.8,1576.7,30.35948934]
[1674006890577,0.0051487,1576.8,1576.7,40.58298934]
[1674006891581,7.8533,1577.4,1576.8,8.202]
[1674006891582,0.074,1577.4,1576.8,8.202]
[1674006891784,0.16923808,1577.6,1577.3,3.11662407]
[1674006892156,0.16923808,1577.6,1577.1,20.697]
[1674006892157,0.16923808,1577.6,1577.5,22.13404407]
[1674006892322,0.16923808,1577.6,1577.5,22.18404407]
[1674006892532,0.16923808,1577.6,1577.5,25.7540224]
[1674006896149,0.16923808,1577.6,1577.5,27.2030224]
[1674006896517,0.16923808,1577.6,1577.5,25.7540224]
[1674006898402,0.16923808,1577.6,1577.5,28.96497864]
[1674006900519,0.16923808,1577.6,1577.5,25.7540224]
[1674006900730,0.16923808,1577.6,1577.5,25.18404407]
[1674006904501,0.16923808,1577.6,1577.5,25.7540224]
[1674006908022,0.16923808,1577.6,1577.5,25.18404407]
[1674006908188,0.16923808,1577.6,1577.5,25.17129201]
[1674006912102,0.16923808,1577.6,1577.5,28.87802827]
[1674006918533,2.86123808,1577.6,1577.5,18.83215201]
[1674006918699,2.86123808,1577.6,1577.5,15.83215201]
[1674006919315,1.41323808,1577.6,1577.5,15.83215201]
[1674006920065,1.41323808,1577.6,1577.5,9.49301201]
[1674006920388,1.55456189,1577.6,1577.5,12.49301201]
[1674006922591,1.55456189,1577.6,1577.5,3.05]
[1674006922810,1.55456189,1577.6,1577.5,3.0]
[1674006925965,0.31056189,1577.6,1577.5,3.0]
[1674006926228,0.16923808,1577.6,1577.5,18.79490407]
[1674006926415,1.41323808,1577.6,1577.5,18.84490407]
[1674006926935,1.41323808,1577.6,1577.5,6.16662407]
[1674006927103,1.62107416,1577.6,1577.5,3.05]
[1674006927315,1.62107416,1577.6,1577.4,0.066]
[1674006927316,4.83323264,1577.6,1577.4,0.066]
[1674006927671,4.83323264,1577.6,1577.3,0.05]
[1674006927672,3.21515848,1577.5,1577.3,0.05]
[1674006927838,2.11412269,1577.5,1577.3,9.45651407]
[1674006928052,2.11412269,1577.5,1577.3,9.50651407]
[1674006928314,3.22869378,1577.5,1577.3,9.50651407]
[1674006929057,0.45107416,1577.6,1577.4,9.45616407]
[1674006929209,0.16923808,1577.6,1577.5,3.11662407]
[1674006929414,0.16923808,1577.6,1577.5,6.11662407]
[1674006929677,0.16923808,1577.6,1577.5,25.18404407]
[1674006930306,0.16923808,1577.6,1577.5,25.73809713]
[1674006930464,0.16923808,1577.6,1577.5,28.94746084]
[1674006933047,0.16923808,1577.6,1577.5,29.3986683]
[1674006933829,0.16923808,1577.6,1577.5,28.84461524]
[1674006936465,0.16923808,1577.6,1577.5,30.8356683]
[1674006936466,0.17059645,1577.6,1577.5,30.8356683]
[1674006938405,0.0040044,1577.8,1577.6,1.5]
[1674006938565,0.0040044,1577.8,1577.7,30.06898407]
[1674006938923,0.0040044,1577.8,1577.7,30.67303713]
[1674006939132,0.0040044,1577.8,1577.7,33.67303713]
[1674006942654,0.0040044,1577.8,1577.7,32.22403713]
[1674006945876,0.0040044,1577.8,1577.7,31.66998407]
[1674006946037,0.0040044,1577.8,1577.7,31.51998407]
[1674006947803,1.2480044,1577.8,1577.7,25.18164407]
[1674006948017,1.2480044,1577.8,1577.7,22.18164407]
[1674006949102,0.0040044,1577.8,1577.7,22.18164407]
[1674006949651,4.4630079,1577.8,1577.7,18.84330407]
[1674006949798,4.74096814,1577.8,1577.7,12.50496407]
[1674006950263,2.97496464,1577.8,1577.7,12.50496407]
[1674006951065,5.73871622,1577.8,1577.7,3.16662407]
[1674006951264,5.14759353,1577.8,1577.7,3.11662407]
[1674006951748,4.81339194,1577.8,1577.7,3.11662407]
[1674006951964,4.4614317,1577.8,1577.7,3.11662407]
[1674006953163,3.2174317,1577.8,1577.7,9.45496407]
[1674006953376,1.76836246,1577.8,1577.7,9.50496407]
[1674006953646,0.0040044,1577.8,1577.7,9.50496407]
[1674006954561,1.2480044,1577.8,1577.7,9.50496407]
[1674006955164,3.41460409,1577.8,1577.7,9.50496407]
[1674006955600,3.41460409,1577.8,1577.7,3.16662407]
[1674006955833,3.41460409,1577.8,1577.7,3.11662407]
[1674006957151,2.17060409,1577.8,1577.7,3.11662407]
[1674006957571,1.76840288,1577.8,1577.7,3.11662407]
[1674006958570,0.0040044,1577.8,1577.7,3.11662407]
[1674006958730,3.01240157,1577.8,1577.7,3.11662407]
[1674006960445,0.0040044,1577.8,1577.7,12.45496407]
[1674006960776,0.0040044,1577.8,1577.7,12.50496407]
[1674006963614,0.66753681,1577.8,1577.7,12.50496407]
[1674006964007,1.76839346,1577.8,1577.7,12.50496407]
[1674006965299,2.30858034,1577.8,1577.7,3.16662407]
[1674006965511,10.42971193,1577.8,1577.6,0.066]
[1674006965683,1.24706772,1577.6,1577.5,0.50120746]
[1674006965890,4.46080418,1577.6,1577.5,3.56783153]
[1674006966106,5.792294,1577.6,1577.5,3.56783153]
[1674006966330,5.866294,1577.6,1577.5,3.56783153]
[1674006967620,4.10155754,1577.6,1577.5,3.56783153]
[1674006967784,4.46077688,1577.6,1577.5,3.56783153]
[1674006967996,0.00306772,1577.6,1577.5,3.56783153]
[1674006968206,0.00306772,1577.6,1577.5,25.58525153]
[1674006968443,0.00306772,1577.6,1577.5,25.63525153]
[1674006973466,0.00306772,1577.6,1577.5,26.18930459]
[1674006973705,0.00306772,1577.6,1577.5,31.33353505]
[1674006976285,0.00071313,1577.6,1577.5,37.62812921]
[1674006976493,0.0040044,1577.8,1577.5,37.96004451]
[1674006976752,0.0040044,1577.8,1577.7,4.55462407]
[1674006976922,0.0040044,1577.8,1577.7,34.29787432]
[1674006977133,0.0040044,1577.8,1577.7,35.07364091]
[1674006977737,0.0040044,1577.8,1577.7,34.88698823]
[1674006977913,0.0040044,1577.8,1577.7,35.11698823]
[1674006978084,0.0040044,1577.8,1577.7,35.30343408]
[1674006978279,0.0040044,1577.8,1577.7,35.11698823]
[1674006979169,0.0040044,1577.8,1577.7,35.30334279]
[1674006979328,0.0040044,1577.8,1577.7,35.11698823]
[1674006979961,0.0040044,1577.8,1577.7,35.30323443]
[1674006980728,0.00015784,1577.8,1577.7,35.30323443]
[1674006981116,0.00015784,1577.8,1577.7,36.1234221]
[1674006981328,0.00015784,1577.8,1577.7,47.67612096]
[1674006981590,0.00015784,1577.8,1577.7,48.33838781]
[1674006981912,0.00015784,1577.8,1577.7,44.57302895]
[1674006982061,0.00015784,1577.8,1577.7,42.4727621]
[1674006982277,0.00015784,1577.8,1577.7,40.20357443]
[1674006982528,0.00015784,1577.8,1577.7,40.01732823]
[1674006984741,0.00015784,1577.8,1577.7,42.2865159]
[1674006985586,0.00015784,1577.8,1577.7,42.47260507]
[1674006985808,0.00015784,1577.8,1577.7,47.50087476]
[1674006986116,9.14e-06,1577.9,1577.8,1.5]
[1674006986346,0.007,1578.1,1577.9,1.5]
[1674006986633,0.007,1578.1,1578.0,29.91414407]
[1674006986795,0.007,1578.1,1578.0,30.73325798]
[1674006987006,0.007,1578.1,1578.0,33.73325798]
[1674006987904,0.0110381,1578.3,1578.1,0.007]
[1674006988056,0.0110381,1578.3,1578.2,29.91094407]
[1674006988270,0.0110381,1578.3,1578.2,30.73005798]
[1674006988509,0.0443453,1578.5,1578.4,3.11662407]
[1674006988698,0.22358984,1578.6,1578.5,1.5]
[1674006988699,0.21793514,1578.6,1578.5,1.5]
[1674006988915,0.21793514,1578.6,1578.5,22.19833448]
[1674006989157,0.21793514,1578.6,1578.5,25.78744839]
[1674006989320,5.14e-06,1578.6,1578.5,30.62926232]
[1674006989530,5.14e-06,1578.6,1578.5,50.02884999]
[1674006989855,1.5e-06,1578.8,1578.5,46.28432153]
[1674006990063,0.0202852,1579.2,1578.7,38.04890407]
[1674006990287,0.0202852,1579.2,1579.1,3.11662407]
[1674006990499,1.438,1579.3,1579.1,6.11662407]
[1674006990728,1.438,1579.2,1579.1,3.05]
[1674006990900,1.69407216,1579.0,1578.7,12.66864]
[1674006991103,3.30147938,1579.0,1578.8,6.11662407]
[1674006991895,1.449,1578.9,1578.8,3.11662407]
[1674006992105,1.449,1578.9,1578.7,0.066]
[1674006992318,1.449,1578.9,1578.7,3.11662407]
[1674006992911,1.449,1578.8,1578.6,0.066]
[1674006993129,1.5939,1578.7,1578.3,6.4017]
[1674006993323,1.449,1578.6,1578.4,3.11662407]
[1674006993534,1.449,1578.6,1578.5,3.11662407]
[1674006993854,0.1449,1578.7,1578.5,3.11662407]
[1674006994066,1.449,1578.9,1578.6,3.11662407]
[1674006994282,1.449,1578.9,1578.7,3.11662407]
[1674006994491,1.449,1578.9,1578.8,3.11662407]
[1674006994721,1.86347938,1579.0,1578.8,3.11662407]
[1674006994722,1.69407216,1579.0,1578.8,3.11662407]
[1674006994959,1.69407216,1579.0,1578.9,3.11662407]
[1674006995311,1.69407216,1579.0,1578.9,15.78366407]
[1674006995770,1.69407216,1579.0,1578.9,18.78366407]
[1674006996263,1.69407216,1579.0,1578.9,27.63554248]
[1674006997829,1.69407216,1579.0,1578.9,28.17465639]
[1674006998509,1.69407216,1579.0,1578.9,28.40465639]
[1674006998680,1.69407216,1579.0,1578.9,29.67865639]
[1674007001730,1.69407216,1579.0,1578.9,28.40465639]
[1674007002556,1.69407216,1579.0,1578.9,28.17465639]
[1674007004049,1.69407216,1579.0,1578.9,22.65629798]
[1674007004264,1.69407216,1579.0,1578.9,15.78366407]
[1674007005141,1.69407216,1579.0,1578.9,22.11718407]
[1674007005527,1.69407216,1579.0,1578.9,22.65629798]
[1674007006281,1.69407216,1579.0,1578.9,25.65629798]
[1674007009453,1.69407216,1579.0,1578.9,28.86191978]
[1674007009861,1.69407216,1579.0,1578.9,28.32280587]
[1674007010045,1.69407216,1579.0,1578.9,28.86191978]
[1674007013212,1.69407216,1579.0,1578.9,29.09191978]
[1674007013609,1.69407216,1579.0,1578.9,30.36691978]
[1674007013825,1.69407216,1579.0,1578.9,29.82780587]
[1674007014030,1.69407216,1579.0,1578.9,30.36691978]
[1674007015869,2.16e-06,1579.0,1578.9,30.36691978]
[1674007016190,0.23324019,1579.4,1579.0,1.5]
[1674007016386,0.23324019,1579.4,1579.2,3.11662407]
[1674007016595,0.23324019,1579.4,1579.1,25.48056]
[1674007016596,0.23324019,1579.4,1579.3,22.11235407]
[1674007016808,0.23324019,1579.4,1579.3,18.78044407]
[1674007017297,0.23324019,1579.4,1579.3,12.44853407]
[1674007017968,2.17098029,1579.4,1579.2,0.066]
[1674007018173,1.28,1579.3,1579.1,6.33248]
[1674007018338,1.28,1579.2,1579.1,15.78165407]
[1674007018758,1.91211235,1579.4,1579.1,22.11437407]
[1674007019032,1.83811235,1579.4,1579.2,3.11662407]
[1674007019249,1.83811235,1579.4,1579.3,9.44853407]
[1674007019393,3.60178183,1579.4,1579.2,0.066]
[1674007019607,1.244,1579.3,1579.2,6.33196]
[1674007019867,1.244,1579.3,1579.2,15.78073407]
[1674007020040,1.244,1579.3,1579.2,9.44858407]
[1674007020463,2.50185245,1579.4,1579.2,9.44858407]
[1674007020674,2.50185245,1579.4,1579.3,3.11662407]
[1674007020930,3.60177329,1579.4,1579.3,3.11662407]
[1674007021286,3.60177329,1579.4,1579.2,0.066]
[1674007021541,0.36017733,1579.3,1579.2,3.11662407]
[1674007021770,0.36017733,1579.3,1579.1,6.39853]
[1674007021931,2.12386964,1579.3,1579.0,15.73184]
[1674007022282,1.27,1579.2,1579.0,12.44954407]
[1674007023196,1.27,1579.2,1579.0,18.78266407]
[1674007024181,1.9337401,1579.2,1579.0,12.44954407]
[1674007024333,1.43737401,1579.1,1579.0,12.44954407]
[1674007026196,0.19337401,1579.1,1579.0,12.44954407]
[1674007026414,1.9337401,1579.2,1579.0,12.44954407]
[1674007027751,1.76367837,1579.1,1579.0,18.78266407]
[1674007028836,0.7377401,1579.3,1579.0,25.11578407]
[1674007029139,0.6637401,1579.3,1579.1,3.0]
[1674007029310,0.6637401,1579.2,1579.1,3.0]
[1674007029719,1.76360976,1579.2,1579.1,3.0]
[1674007030466,3.37760366,1579.2,1579.1,3.0]
[1674007030670,3.37760366,1579.2,1579.0,9.51571407]
[1674007031037,1.76299799,1579.1,1579.0,15.78283407]
[1674007031225,1.76299799,1579.1,1579.0,18.78283407]
[1674007031618,1.76299799,1579.1,1579.0,12.44971407]
[1674007032188,3.01486233,1579.2,1579.0,12.44971407]
[1674007032343,1.76305207,1579.1,1579.0,12.44971407]
[1674007033011,2.01712833,1579.2,1579.0,12.44971407]
[1674007033202,2.01712833,1579.2,1579.1,18.78206407]
[1674007033203,1.66086233,1579.2,1579.1,18.78206407]
[1674007033395,1.76300311,1579.2,1579.1,25.11478407]
[1674007034023,1.66168396,1579.2,1579.1,25.11478407]
[1674007034239,2.09760878,1579.2,1579.1,25.11478407]
[1674007034498,2.09760878,1579.2,1579.1,12.44934407]
[1674007034658,1.34791675,1579.2,1579.1,3.0]
[1674007034877,2.44779153,1579.2,1579.1,3.0]
[1674007035864,18.74480982,1579.1,1579.0,0.0147273]
[1674007036286,25.07752982,1579.1,1579.0,0.0147273]
[1674007037606,25.30752982,1579.1,1579.0,0.0147273]
[1674007038077,26.70156429,1579.1,1579.0,0.0147273]
[1674007038444,20.36884429,1579.1,1579.0,0.01170421]
[1674007038703,18.97480982,1579.1,1579.0,0.01170421]
[1674007040965,20.30209599,1579.1,1579.0,0.01170421]
[1674007041172,18.97480982,1579.1,1579.0,0.01170421]
[1674007041382,7.40665372,1579.1,1579.0,0.01170421]
[1674007041631,5.73986516,1579.1,1579.0,0.01170421]
[1674007041836,6.73528292,1579.1,1579.0,0.01170421]
[1674007042053,6.73528292,1579.1,1579.0,0.6117317]
[1674007042258,3.43829254,1579.1,1579.0,0.6117317]
[1674007042435,3.36429254,1579.1,1579.0,0.6117317]
[1674007043695,4.02789433,1579.1,1579.0,0.6117317]
[1674007044147,3.36429254,1579.1,1579.0,0.6117317]
[1674007044363,2.75890769,1579.1,1579.0,0.6117317]
[1674007045120,2.09529254,1579.1,1579.0,0.6117317]
[1674007045270,2.7589058,1579.1,1579.0,0.6117317]
[1674007045479,3.33794304,1579.1,1579.0,0.6117317]
[1674007046340,2.7589058,1579.1,1579.0,0.6117317]
[1674007046582,1.76348804,1579.1,1579.0,0.6117317]
[1674007046743,1.76348804,1579.1,1579.0,10.06147577]
[1674007046962,0.66361326,1579.2,1579.0,25.72771577]
[1674007047208,1.65903102,1579.2,1579.1,3.11662407]
[1674007047533,1.65903102,1579.2,1579.1,25.11478407]
[1674007047534,1.76349625,1579.2,1579.1,25.11478407]
[1674007047685,2.75891401,1579.2,1579.1,25.11478407]
[1674007048471,1.76349625,1579.2,1579.1,25.11478407]
[1674007048880,0.66361326,1579.2,1579.1,25.11478407]
[1674007050776,0.99541776,1579.2,1579.1,3.0]
[1674007050987,1.27130916,1579.2,1579.1,3.0]
[1674007051233,4.96747605,1579.2,1579.0,0.6777317]
[1674007051421,2.09527454,1579.1,1579.0,0.6117317]
[1674007051769,2.59202215,1579.1,1579.0,0.6117317]
[1674007051978,3.91930605,1579.1,1579.0,0.6117317]
[1674007053244,2.59202215,1579.1,1579.0,0.6117317]
[1674007054298,2.00885442,1579.2,1579.0,6.9448517]
[1674007054460,3.99631837,1579.3,1579.1,3.11662407]
[1674007054461,1.73296302,1579.3,1579.1,3.11662407]
[1674007054679,1.73296302,1579.3,1579.2,18.78126407]
[1674007054680,0.66357147,1579.3,1579.2,18.78126407]
[1674007055033,1.76333114,1579.3,1579.2,18.78126407]
[1674007055190,0.66357147,1579.3,1579.2,18.78126407]
[1674007055665,2.75872269,1579.3,1579.2,18.78126407]
[1674007055852,1.76333114,1579.3,1579.2,18.78126407]
[1674007058449,2.75872269,1579.3,1579.2,18.78126407]
[1674007060616,2.75872269,1579.3,1579.2,3.0]
[1674007060759,3.19804737,1579.3,1579.2,3.0]
[1674007061024,3.19804737,1579.3,1579.1,6.39841]
[1674007061173,2.0982877,1579.3,1579.1,9.44903407]
[1674007061818,2.0982877,1579.3,1579.0,16.3439717]
[1674007062033,2.0982877,1579.3,1579.1,3.0]
[1674007062745,2.0982877,1579.3,1579.1,9.3327]
[1674007062962,1.65896302,1579.3,1579.1,9.3327]
[1674007063229,2.75880113,1579.3,1579.1,6.3327]
[1674007063446,1.76340958,1579.2,1579.0,16.46036577]
[1674007063749,1.76340958,1579.2,1579.0,22.72728577]
[1674007064515,0.66357147,1579.2,1579.0,22.72728577]
[1674007066603,0.66357147,1579.2,1579.0,13.2775417]
[1674007066780,0.66357147,1579.2,1579.0,10.06124577]
[1674007066992,9.75444006,1579.3,1579.2,2.46229727]
[1674007066993,0.074,1579.3,1579.2,2.46229727]
[1674007067204,0.89681166,1579.4,1579.2,24.57588134]
[1674007067409,0.89681166,1579.4,1579.3,18.78044407]
[1674007067618,0.23324019,1579.4,1579.3,25.11235407]
[1674007068467,0.23324019,1579.4,1579.3,27.6304192]
[1674007068674,0.23324019,1579.4,1579.3,28.9064192]
[1674007069234,0.23324019,1579.4,1579.3,29.44553311]
[1674007071438,0.22971994,1579.4,1579.3,28.9064192]
[1674007074014,0.19173084,1579.4,1579.3,28.9064192]
[1674007074451,0.19173084,1579.4,1579.3,27.6304192]
[1674007074682,0.19173084,1579.4,1579.3,25.11235407]
[1674007076369,0.19173084,1579.4,1579.3,26.93146798]
[1674007077596,0.19173084,1579.4,1579.3,26.39235407]
[1674007078284,0.19173084,1579.4,1579.3,9.33191]
[1674007078597,1.43573084,1579.4,1579.3,3.0]
[1674007078752,1.5642879,1579.4,1579.2,12.73255727]
[1674007078967,1.5642879,1579.4,1579.2,0.00229727]
[1674007080184,1.5642879,1579.4,1579.2,22.11576134]
[1674007080185,0.19173084,1579.4,1579.2,22.11576134]
[1674007080719,0.19173084,1579.4,1579.2,22.12052164]
[1674007081430,0.19173084,1579.4,1579.3,9.33191]
[1674007082035,0.19173084,1579.4,1579.3,3.0]
[1674007082242,0.19173084,1579.4,1579.2,3.07305757]
[1674007082478,1.02716205,1579.4,1579.2,3.00705757]
[1674007082642,1.02716205,1579.4,1579.2,0.00705757]
[1674007083112,0.19173084,1579.4,1579.3,3.11662407]
[1674007083323,0.19173084,1579.4,1579.3,22.11235407]
[1674007083639,0.19173084,1579.4,1579.3,25.11235407]
[1674007084785,0.19173084,1579.4,1579.3,18.78044407]
[1674007085112,0.19173084,1579.4,1579.3,25.11235407]
[1674007085323,0.19173084,1579.4,1579.3,27.99164348]
[1674007085684,0.19173084,1579.4,1579.3,28.53075739]
[1674007086009,0.19173084,1579.4,1579.3,27.99164348]
[1674007086218,0.19173084,1579.4,1579.3,28.53075739]
[1674007089318,0.19173084,1579.4,1579.3,25.11235407]
[1674007090361,1.43573084,1579.4,1579.3,18.78044407]
[1674007090572,1.43573084,1579.4,1579.2,12.73746757]
[1674007090843,1.43573084,1579.4,1579.2,15.78809164]
[1674007091633,1.43573084,1579.4,1579.2,6.33917757]
[1674007091844,1.38757308,1579.3,1579.2,0.00705757]
[1674007092072,1.38757308,1579.3,1579.2,3.00705757]
[1674007092237,0.14357308,1579.3,1579.2,3.00705757]
[1674007094908,0.14357308,1579.3,1579.2,3.01876178]
[1674007097577,0.14357308,1579.3,1579.2,0.01876178]
[1674007097578,1.38757308,1579.3,1579.2,0.01876178]
[1674007098436,1.38757308,1579.3,1579.2,0.01565185]
[1674007099171,9.65705455,1579.3,1579.2,0.01565185]
[1674007099367,22.8311404,1579.3,1579.2,0.01565185]
[1674007099585,23.82653195,1579.3,1579.2,0.01565185]
[1674007099947,25.15381585,1579.3,1579.2,0.01565185]
[1674007100141,25.38381585,1579.3,1579.2,0.01565185]
[1674007100726,24.0554247,1579.3,1579.2,0.01565185]
[1674007100950,24.3884243,1579.3,1579.2,0.01565185]
[1674007101435,0.0093345,1579.1,1579.0,0.60002749]
[1674007101588,15.6815004,1579.1,1579.0,0.60002749]
[1674007101797,13.9927745,1579.1,1579.0,0.60002749]
[1674007103118,15.7556684,1579.1,1579.0,0.60002749]
[1674007103734,17.0336684,1579.1,1579.0,0.60002749]
[1674007103957,23.59639262,1579.1,1579.0,0.60002749]
[1674007104320,28.37174487,1579.1,1578.7,0.0056115]
[1674007104531,7.60293396,1579.0,1578.7,0.0056115]
[1674007104792,19.00056,1578.9,1578.7,0.0056115]
[1674007104957,20.50076,1578.8,1578.7,0.0056115]
[1674007105179,20.57476,1578.8,1578.7,0.0056115]
[1674007107717,14.24084,1578.8,1578.7,0.0056115]
[1674007108330,20.57476,1578.8,1578.7,0.0056115]
[1674007109788,14.24084,1578.8,1578.7,0.0056115]
[1674007111155,20.57476,1578.8,1578.7,0.0056115]
[1674007113415,20.52476,1578.8,1578.7,0.0056115]
[1674007115670,21.80476,1578.8,1578.7,0.0056115]
[1674007116775,20.58576,1578.8,1578.7,0.0056115]
[1674007116930,7.91792,1578.8,1578.7,0.0056115]
[1674007117146,6.63792,1578.8,1578.7,0.0056115]
[1674007117689,0.074,1578.8,1578.7,1.2216115]
[1674007117954,7.73126781,1578.9,1578.7,0.0056115]
[1674007119110,1.39774781,1578.9,1578.7,6.3399215]
[1674007119347,1.39774781,1578.9,1578.7,12.6742415]
[1674007119348,1.32674781,1578.9,1578.7,12.6742415]
[1674007119471,1.32374781,1578.9,1578.7,6.3399215]
[1674007121430,1.32374781,1578.9,1578.7,0.0056115]
[1674007121738,13.99078781,1578.9,1578.7,0.0056115]
[1674007121890,14.06478781,1578.9,1578.7,0.0056115]
[1674007122103,7.73126781,1578.9,1578.7,0.0056115]
[1674007122956,14.06478781,1578.9,1578.7,0.0056115]
[1674007123723,12.74104,1578.9,1578.7,0.0056115]
[1674007125513,1.441,1578.8,1578.7,0.0056115]
[1674007125723,21.457612,1578.8,1578.7,0.0056115]
[1674007125936,21.531612,1578.8,1578.7,0.0056115]
[1674007130743,22.972612,1578.8,1578.7,0.0056115]
[1674007131066,26.08923607,1578.8,1578.7,0.0056115]
[1674007134695,24.64823607,1578.8,1578.7,0.0056115]
[1674007136652,24.64823607,1578.8,1578.7,0.00204341]
[1674007138466,25.32529607,1578.8,1578.7,0.00204341]
[1674007139508,22.208672,1578.8,1578.7,0.00204341]
[1674007139699,20.767672,1578.8,1578.7,0.00204341]
[1674007143293,20.983672,1578.8,1578.7,0.00204341]
[1674007146041,20.803672,1578.8,1578.7,0.00204341]
[1674007147926,24.89108648,1578.8,1578.7,0.00204341]
[1674007148142,28.00771055,1578.8,1578.7,0.00204341]
[1674007148308,30.77708822,1578.8,1578.7,0.00204341]
[1674007148731,33.77708822,1578.8,1578.7,0.00204341]
[1674007151146,18.32709982,1578.8,1578.7,1.21804341]
[1674007151373,0.96706,1578.8,1578.7,1.21804341]
[1674007151584,0.89306,1578.8,1578.7,1.21804341]
[1674007153679,0.89306,1578.8,1578.7,0.00204341]
[1674007155984,0.89306,1578.8,1578.7,2.46204341]
[1674007156231,0.89306,1578.8,1578.7,8.79636341]
[1674007156573,0.89306,1578.8,1578.7,2.46204341]
[1674007157572,0.89306,1578.8,1578.7,0.00204341]
[1674007157789,2.81253616,1578.8,1578.7,0.00204341]
[1674007158037,1.04873124,1578.8,1578.7,0.00204341]
[1674007158198,0.89306,1578.8,1578.7,0.00204341]
[1674007160121,0.89306,1578.8,1578.7,0.50536622]
[1674007160335,0.89306,1578.8,1578.7,9.95631029]
[1674007160512,6e-05,1578.8,1578.7,29.01826735]
[1674007161386,6e-05,1578.8,1578.7,39.01996735]
[1674007162206,6e-05,1578.8,1578.7,43.56200408]
[1674007163245,6e-05,1578.8,1578.7,52.17330408]
[1674007165560,14.80955524,1579.3,1578.7,52.17330408]
[1674007165927,14.80955524,1579.3,1579.0,1.434]
[1674007167152,7.81381286,1579.3,1579.0,7.76708]
[1674007167371,1.48173286,1579.3,1579.1,1.442]
[1674007167586,1.40773286,1579.3,1579.1,14.10697]
[1674007168963,1.40773286,1579.3,1579.2,1.442]
[1674007170080,1.30773286,1579.3,1579.2,1.442]
[1674007170251,1.30773286,1579.3,1579.2,2.859297]
[1674007172509,1.30773286,1579.3,1579.2,9.191617]
[1674007173351,1.30773286,1579.3,1579.2,15.523937]
[1674007174023,1.30773286,1579.3,1579.2,16.954937]
[1674007174226,0.19173084,1579.4,1579.2,16.954937]
[1674007174405,0.19173084,1579.4,1579.3,1.442]
[1674007176371,0.19173084,1579.4,1579.3,12.59262777]
[1674007176564,0.19173084,1579.4,1579.3,25.25644777]
[1674007179450,0.04173084,1579.4,1579.3,25.25644777]
[1674007180500,0.04173084,1579.4,1579.3,26.69844777]
[1674007180866,0.04173084,1579.4,1579.3,30.20836867]
[1674007182093,0.04173084,1579.4,1579.3,29.69844777]
[1674007182298,0.04173084,1579.4,1579.3,28.25644777]
[1674007184207,0.04173084,1579.4,1579.3,28.76636867]
[1674007184415,0.04173084,1579.4,1579.3,28.78038067]
[1674007187130,0.21971806,1579.6,1579.4,1.5]
[1674007187341,0.21971806,1579.6,1579.5,32.91006407]
[1674007187558,0.21971806,1579.6,1579.5,33.43399519]
[1674007187857,0.21971806,1579.6,1579.5,36.43399519]
[1674007191436,0.25413509,1579.7,1579.6,1.5]
[1674007191607,0.24159331,1579.9,1579.7,1.5]
[1674007191829,0.24159331,1579.9,1579.8,26.58235407]
[1674007192071,0.24159331,1579.9,1579.8,27.09227497]
[1674007192358,0.24159331,1579.9,1579.8,30.09227497]
[1674007192729,0.24159331,1579.9,1579.8,33.80174337]
[1674007192946,0.24159331,1579.9,1579.8,30.09227497]
[1674007194720,0.24159331,1579.9,1579.8,28.65027497]
[1674007195222,0.24159331,1579.9,1579.8,27.20827497]
[1674007195357,0.24159331,1579.9,1579.8,25.25635407]
[1674007196153,0.25962366,1580.0,1579.8,26.91935407]
[1674007196528,0.13802685,1580.6,1580.0,0.13513624]
[1674007196697,0.23499163,1580.7,1580.5,3.11662407]
[1674007196843,2.98659977,1581.3,1580.5,3.11662407]
[1674007196844,0.66926388,1581.4,1580.7,32.00144]
[1674007197053,0.0056115,1581.4,1581.3,3.11662407]
[1674007197541,1.2496115,1581.4,1581.2,6.32391]
[1674007197724,1.2496115,1581.4,1581.2,3.17062407]
[1674007197892,1.2496115,1581.4,1581.1,9.33668]
[1674007197893,0.0056115,1581.4,1581.3,3.11662407]
[1674007198108,0.0056115,1581.4,1581.3,18.76444407]
[1674007198374,0.0056115,1581.4,1581.3,20.25044407]
[1674007198521,0.0056115,1581.4,1581.3,23.54172448]
[1674007198732,0.0056115,1581.4,1581.3,24.98372448]
[1674007199170,0.25573137,1581.4,1581.3,24.98372448]
[1674007199610,0.25573137,1581.4,1581.3,23.54972448]
[1674007199825,0.25573137,1581.4,1581.3,12.49253407]
[1674007200016,0.25573137,1581.4,1581.3,9.49253407]
[1674007200372,0.25573137,1581.4,1581.3,17.24644407]
[1674007200583,0.25573137,1581.4,1581.3,21.90944407]
[1674007200903,0.25573137,1581.4,1581.3,24.50420648]
[1674007201204,0.25573137,1581.4,1581.3,0.052]
[1674007201416,0.25573137,1581.4,1581.1,0.054]
[1674007201575,0.25573137,1581.4,1581.2,3.11662407]
[1674007201781,0.25573137,1581.4,1581.3,3.11662407]
[1674007203102,0.25573137,1581.4,1581.3,4.55862407]
[1674007203256,0.25573137,1581.4,1581.3,6.28589148]
[1674007203475,0.25573137,1581.4,1581.3,12.66180148]
[1674007203715,0.25573137,1581.4,1581.3,10.93453407]
[1674007203929,0.25573137,1581.4,1581.3,17.25844407]
[1674007205249,0.25573137,1581.4,1581.3,25.40230159]
[1674007205480,0.25573137,1581.4,1581.3,25.91222249]
[1674007205693,0.25573137,1581.4,1581.3,22.44036497]
[1674007206042,0.51852969,1582.2,1581.5,6.697]
[1674007206249,0.44652969,1582.2,1582.1,23.52075407]
[1674007206477,0.44652969,1582.2,1582.1,10.93133407]
[1674007206679,0.44652969,1582.2,1582.1,0.052]
[1674007206823,0.44652969,1582.2,1581.8,0.066]
[1674007206824,15.97114969,1582.2,1581.8,0.066]
[1674007207035,15.97114969,1582.2,1581.4,7.63817]
[1674007207036,1.437,1581.9,1581.4,0.066]
[1674007207407,13.28096173,1581.8,1581.1,0.066]
[1674007207625,2.89174173,1581.8,1581.1,6.32471]
[1674007207889,0.23,1581.7,1581.1,6.37871]
[1674007208020,7.99437,1581.7,1581.1,0.054]
[1674007208230,14.887247,1581.6,1580.9,7.82821]
[1674007208439,14.959247,1581.6,1580.9,7.81621]
[1674007208703,1.672,1581.5,1580.9,0.054]
[1674007208922,7.99536,1581.5,1580.8,6.37958]
[1674007209130,1.5,1581.4,1580.8,6.37958]
[1674007209294,1.5,1581.4,1580.8,0.054]
[1674007209295,0.15,1581.3,1580.8,0.054]
[1674007209490,1.822,1581.3,1580.7,0.054]
[1674007209699,1.822,1581.3,1580.6,6.38052]